fUST/lending_fUST_20240108
["ID","MTS","AMOUNT","RATE_DAILY","PERIOD"]
[310711474,1704648650145,-500.0,0.0003589,2]
[310711475,1704648650223,-500.0,0.0003589,2]
[310711476,1704648650242,-515.79674656,0.0003589,2]
[310711477,1704648650251,-1413.67,0.0003589,2]
[310711478,1704648650261,-500.0,0.0003589,2]
[310711479,1704648650270,-512.42529207,0.0003589,2]
[310711480,1704648650279,-500.0,0.0003589,2]
[310711481,1704648650289,-500.0,0.0003589,2]
[310711482,1704648650298,-539.74,0.0003589,2]
[310711483,1704648650308,-418.84848985,0.0003589,2]
[310711484,1704648650317,-500.0,0.0003589,2]
[310711485,1704648650326,-503.13399748,0.0003589,2]
[310711486,1704648650335,-500.0,0.0003589,2]
[310711487,1704648650344,-500.0,0.0003589,2]
[310711488,1704648650353,-1000.0,0.0003589,2]
[310711489,1704648650362,-500.0,0.0003589,2]
[310711490,1704648650371,-500.0,0.0003589,2]
[310711491,1704648650381,-500.0,0.0003589,2]
[310711492,1704648650391,-500.0,0.0003589,2]
[310711493,1704648650400,-1939.68,0.0003589,2]
[310711494,1704648650409,-500.0,0.0003589,2]
[310711495,1704648650418,-500.0,0.0003589,2]
[310711496,1704648650427,-500.0,0.0003589,2]
[310711497,1704648650436,-500.0,0.0003589,2]
[310711498,1704648650445,-500.0,0.0003589,2]
[310711499,1704648650454,-500.0,0.0003589,2]
[310711500,1704648650464,-500.0,0.0003589,2]
[310711501,1704648650473,-500.0,0.0003589,2]
[310711502,1704648650482,-500.0,0.0003589,2]
[310711503,1704648650491,-500.0,0.0003589,2]
[310711504,1704648650501,-500.0,0.0003589,2]
[310711505,1704648650510,-500.0,0.0003589,2]
[310711506,1704648650520,-500.0,0.0003589,2]
[310711507,1704648650530,-500.0,0.0003589,2]
[310711508,1704648650540,-500.0,0.0003589,2]
[310711509,1704648650550,-500.0,0.0003589,2]
[310711510,1704648650561,-408.38482192,0.0003589,2]
[310711511,1704648650571,-500.0,0.0003589,2]
[310711512,1704648650582,-547.74,0.0003589,2]
[310711513,1704648650591,-203.56222818,0.0003589,2]
[310711514,1704648650602,-500.0,0.0003589,2]
[310711515,1704648650612,-500.0,0.0003589,2]
[310711516,1704648650621,-160.07232209,0.0003589,2]
[310711517,1704648650633,-500.0,0.0003589,2]
[310711518,1704648650643,-500.0,0.0003589,2]
[310711519,1704648650655,-493.96111225,0.0003589,2]
[310711520,1704648650664,-507.02460913,0.0003589,2]
[310711521,1704648650673,-500.0,0.0003589,2]
[310711522,1704648650682,-663.66,0.0003589,2]
[310711523,1704648650691,-500.0,0.0003589,2]
[310711524,1704648650700,-500.0,0.0003589,2]
[310711525,1704648650710,-1145.8,0.0003589,2]
[310711526,1704648650719,-585.31,0.0003589,2]
[310711527,1704648650728,-500.0,0.0003589,2]
[310711528,1704648650738,-500.0,0.0003589,2]
[310711529,1704648650746,-500.0,0.0003589,2]
[310711530,1704648650756,-500.0,0.0003589,2]
[310711531,1704648650766,-975.69,0.0003589,2]
[310711532,1704648650776,-500.0,0.0003589,2]
[310711533,1704648650785,-500.0,0.0003589,2]
[310711534,1704648650794,-500.0,0.0003589,2]
[310711535,1704648650803,-500.0,0.0003589,2]
[310711536,1704648650812,-500.0,0.0003589,2]
[310711537,1704648650822,-500.0,0.0003589,2]
[310711538,1704648650832,-500.0,0.0003589,2]
[310711539,1704648650840,-500.0,0.0003589,2]
[310711540,1704648650850,-500.0,0.0003589,2]
[310711541,1704648650860,-500.0,0.0003589,2]
[310711542,1704648650870,-263.58153803,0.0003589,2]
[310711543,1704648650882,-857.22,0.0003589,2]
[310711544,1704648650891,-1000.0,0.0003589,7]
[310711545,1704648650900,-500.0,0.0003589,2]
[310711546,1704648650910,-500.0,0.0003589,2]
[310711547,1704648650920,-500.0,0.0003589,2]
[310711548,1704648650929,-500.0,0.0003589,2]
[310711549,1704648650938,-500.0,0.0003589,2]
[310711550,1704648650947,-890.39,0.0003589,2]
[310711551,1704648650956,-521.3,0.0003589,2]
[310711552,1704648650966,-500.0,0.0003589,2]
[310711553,1704648650975,-986.23,0.0003589,2]
[310711554,1704648650985,-500.0,0.0003589,2]
[310711555,1704648650994,-500.0,0.0003589,2]
[310711556,1704648651003,-500.0,0.0003589,2]
[310711557,1704648651012,-1993.04,0.0003589,2]
[310711558,1704648651022,-2581.24,0.0003589,2]
[310711559,1704648651031,-500.0,0.0003589,2]
[310711560,1704648651041,-2806.36,0.0003589,2]
[310711561,1704648651050,-500.0,0.0003589,2]
[310711562,1704648651059,-500.0,0.0003589,2]
[310711563,1704648651068,-524.07113787,0.0003589,2]
[310711564,1704648651078,-500.0,0.0003589,2]
[310711565,1704648651087,-500.0,0.0003589,2]
[310711566,1704648651096,-500.0,0.0003589,2]
[310711567,1704648651106,-504.46,0.0003589,2]
[310711568,1704648651117,-500.0,0.0003589,2]
[310711569,1704648651126,-500.0,0.0003589,2]
[310711570,1704648651137,-2890.28,0.0003589,2]
[310711571,1704648651147,-500.0,0.0003589,2]
[310711572,1704648651156,-500.0,0.0003589,2]
[310711573,1704648651165,-663.44,0.0003589,2]
[310711574,1704648651175,-499.91050506,0.0003589,2]
[310711575,1704648651185,-500.0,0.0003589,2]
[310711576,1704648651196,-541.31,0.0003589,2]
[310711577,1704648651206,-500.0,0.0003589,2]
[310711578,1704648651216,-596.21,0.0003589,2]
[310711579,1704648651226,-500.0,0.0003589,2]
[310711580,1704648651235,-509.16954232,0.0003589,2]
[310711581,1704648651245,-194.73484116,0.0003589,2]
[310711582,1704648651257,-220.0,0.0003589,2]
[310711583,1704648651267,-500.0,0.0003589,2]
[310711584,1704648651277,-500.0,0.0003589,2]
[310711585,1704648651287,-500.0,0.0003589,2]
[310711586,1704648651297,-500.0,0.0003589,2]
[310711587,1704648651307,-500.0,0.0003589,2]
[310711588,1704648651316,-500.0,0.0003589,2]
[310711589,1704648651326,-500.0,0.0003589,2]
[310711590,1704648651335,-500.0,0.0003589,2]
[310711591,1704648651345,-516.27416618,0.0003589,2]
[310711592,1704648651355,-500.0,0.0003589,2]
[310711593,1704648651364,-500.0,0.0003589,2]
[310711594,1704648651374,-500.0,0.0003589,2]
[310711595,1704648651386,-500.0,0.0003589,2]
[310711596,1704648651396,-502.41840057,0.0003589,2]
[310711597,1704648651405,-500.0,0.0003589,2]
[310711598,1704648651414,-250.89598551,0.0003589,2]
[310711599,1704648651424,-519.54143929,0.0003589,2]
[310711600,1704648651432,-503.50274672,0.0003589,2]
[310711601,1704648651442,-500.0,0.0003589,2]
[310711602,1704648651451,-500.0,0.0003589,2]
[310711603,1704648651461,-551.81530778,0.0003589,2]
[310711604,1704648651471,-2003.87,0.0003589,2]
[310711605,1704648651481,-500.0,0.0003589,2]
[310711606,1704648651490,-500.0,0.0003589,2]
[310711607,1704648651500,-500.0,0.0003589,2]
[310711608,1704648651509,-500.0,0.0003589,2]
[310711609,1704648651519,-500.0,0.0003589,2]
[310711610,1704648651528,-500.0,0.0003589,2]
[310711611,1704648651538,-506.97192094,0.0003589,2]
[310711612,1704648651547,-500.0,0.0003589,2]
[310711613,1704648651557,-493.75243731,0.0003589,2]
[310711614,1704648651567,-180.22920971,0.0003589,2]
[310711615,1704648651577,-505.45,0.0003589,2]
[310711616,1704648651586,-500.0,0.0003589,2]
[310711617,1704648651674,-500.0,0.0003589,2]
[310711618,1704648651683,-500.0,0.0003589,2]
[310711619,1704648651693,-500.0,0.0003589,2]
[310711620,1704648651702,-500.0,0.0003589,2]
[310711621,1704648651712,-500.0,0.0003589,2]
[310711622,1704648651722,-500.0,0.0003589,2]
[310711623,1704648651731,-500.0,0.0003589,2]
[310711624,1704648651741,-500.0,0.0003589,2]
[310711625,1704648651751,-500.0,0.0003589,2]
[310711626,1704648651761,-651.53,0.0003589,2]
[310711627,1704648651770,-1100.0,0.0003589,2]
[310711628,1704648651780,-500.0,0.0003589,2]
[310711629,1704648651790,-500.0,0.0003589,2]
[310711630,1704648651799,-1648.95,0.0003589,2]
[310711631,1704648651809,-500.0,0.0003589,2]
[310711632,1704648651819,-500.0,0.0003589,2]
[310711633,1704648651828,-528.98531542,0.0003589,2]
[310711634,1704648651837,-500.0,0.0003589,2]
[310711635,1704648651846,-500.0,0.0003589,2]
[310711636,1704648651855,-500.0,0.0003589,2]
[310711637,1704648651864,-502.44343783,0.0003589,2]
[310711638,1704648651873,-697.37,0.0003589,2]
[310711639,1704648651884,-1076.29,0.0003589,2]
[310711640,1704648651893,-222.22513102,0.0003589,2]
[310711641,1704648651903,-500.0,0.0003589,2]
[310711642,1704648651912,-500.0,0.0003589,2]
[310711643,1704648651922,-2663.4,0.0003589,2]
[310711644,1704648651931,-500.0,0.0003589,2]
[310711645,1704648651940,-503.19800292,0.0003589,2]
[310711646,1704648651949,-1268.16,0.0003589,2]
[310711647,1704648651959,-514.72932734,0.0003589,2]
[310711648,1704648651969,-500.0,0.0003589,2]
[310711649,1704648651979,-346.49818875,0.0003589,2]
[310711650,1704648651989,-500.0,0.0003589,2]
[310711651,1704648651998,-582.31,0.0003589,2]
[310711652,1704648652008,-528.88265758,0.0003589,2]
[310711653,1704648652018,-500.0,0.0003589,2]
[310711654,1704648652028,-500.0,0.0003589,2]
[310711655,1704648652037,-327.21998897,0.0003589,2]
[310711656,1704648652047,-510.86209019,0.0003589,2]
[310711657,1704648652057,-500.0,0.0003589,2]
[310711658,1704648652068,-500.0,0.0003589,2]
[310711659,1704648652077,-500.0,0.0003589,2]
[310711660,1704648652087,-500.0,0.0003589,2]
[310711661,1704648652097,-500.73943784,0.0003589,2]
[310711662,1704648652106,-500.0,0.0003589,2]
[310711663,1704648652115,-500.0,0.0003589,2]
[310711664,1704648652125,-512.85929166,0.0003589,2]
[310711665,1704648652135,-232.48460539,0.0003589,2]
[310711666,1704648652144,-500.0,0.0003589,2]
[310711667,1704648652154,-500.0,0.0003589,2]
[310711668,1704648652164,-514.53260775,0.0003589,2]
[310711669,1704648652173,-500.0,0.0003589,2]
[310711670,1704648652183,-500.0,0.0003589,2]
[310711671,1704648652193,-500.0,0.0003589,2]
[310711672,1704648652203,-500.0,0.0003589,2]
[310711673,1704648652213,-248.31418615,0.0003589,2]
[310711674,1704648652222,-401.51841372,0.0003589,2]
[310711675,1704648652233,-243.53079532,0.0003589,2]
[310711676,1704648652243,-500.0,0.0003589,2]
[310711677,1704648652253,-500.0,0.0003589,2]
[310711678,1704648652263,-500.0,0.0003589,2]
[310711679,1704648652272,-1419.46,0.0003589,2]
[310711680,1704648652282,-523.4326079,0.0003589,2]
[310711681,1704648652292,-500.0,0.0003589,2]
[310711682,1704648652301,-152.598571,0.0003589,2]
[310711683,1704648652312,-152.598571,0.0003589,2]
[310711684,1704648652321,-160.0,0.00035969,19]
[310711685,1704648652331,-262.78089489,0.00036,4]
[310711686,1704648652341,-843.81652423,0.00036,2]
[310711687,1704648652350,-167.99,0.00036,2]
[310711688,1704648652360,-167.99,0.00036,2]
[310711689,1704648652370,-167.99,0.00036,2]
[310711690,1704648652379,-167.99,0.00036,2]
[310711691,1704648652388,-167.99,0.00036,2]
[310711692,1704648652398,-167.99,0.00036,2]
[310711693,1704648652407,-167.99,0.00036,2]
[310711694,1704648652416,-167.99,0.00036,2]
[310711695,1704648652427,-167.99,0.00036,2]
[310711696,1704648652437,-167.99,0.00036,2]
[310711697,1704648652446,-167.99,0.00036,2]
[310711698,1704648652455,-334.94,0.00036,2]
[310711699,1704648652464,-500.0,0.00036,7]
[310711700,1704648652474,-4665.00847665,0.0003607,2]
[310711701,1704648652484,-1000.08031226,0.00036103,14]
[310711702,1704648652493,-1000.08031226,0.00036137,14]
[310711703,1704648652502,-160.0,0.00036158,20]
[310711704,1704648652511,-500.0,0.00036164,2]
[310711705,1704648652521,-1413.67,0.00036164,2]
[310711706,1704648652530,-501.14299614,0.00036164,2]
[310711707,1704648652539,-576.80744826,0.00036164,2]
[310711708,1704648652550,-296.98666726,0.00036164,2]
[310711709,1704648652560,-539.74,0.00036164,2]
[310711710,1704648652570,-500.0,0.00036164,2]
[310711711,1704648652579,-500.0,0.00036164,2]
[310711712,1704648652588,-500.0,0.00036164,2]
[310711713,1704648652600,-1000.0,0.00036164,2]
[310711714,1704648652612,-173.31388205,0.00036164,2]
[310711715,1704648652622,-511.26498433,0.00036164,2]
[310711716,1704648652632,-500.0,0.00036164,2]
[310711717,1704648652641,-190.11126245,0.00036164,2]
[310711718,1704648652652,-1939.68,0.00036164,2]
[310711719,1704648652662,-500.0,0.00036164,2]
[310711720,1704648652672,-500.0,0.00036164,2]
[310711721,1704648652681,-500.0,0.00036164,2]
[310711722,1704648652691,-500.0,0.00036164,2]
[310711723,1704648652700,-500.0,0.00036164,2]
[310711724,1704648652709,-500.0,0.00036164,2]
[310711725,1704648652718,-500.0,0.00036164,2]
[310711726,1704648652728,-500.0,0.00036164,2]
[310711727,1704648652738,-318.65513227,0.00036164,2]
[310711728,1704648652748,-500.0,0.00036164,2]
[310711729,1704648652757,-500.0,0.00036164,2]
[310711730,1704648652766,-500.0,0.00036164,2]
[310711731,1704648652776,-500.0,0.00036164,2]
[310711732,1704648652785,-500.0,0.00036164,2]
[310711733,1704648652795,-500.0,0.00036164,2]
[310711734,1704648652804,-514.52396818,0.00036164,2]
[310711735,1704648652814,-547.74,0.00036164,2]
[310711736,1704648652823,-500.0,0.00036164,2]
[310711737,1704648652833,-500.0,0.00036164,2]
[310711738,1704648652842,-500.0,0.00036164,2]
[310711739,1704648652851,-500.0,0.00036164,2]
[310711740,1704648652861,-521.36937742,0.00036164,2]
[310711741,1704648652870,-663.66,0.00036164,2]
[310711742,1704648652881,-500.0,0.00036164,2]
[310711743,1704648652891,-500.0,0.00036164,2]
[310711744,1704648652900,-1145.8,0.00036164,2]
[310711745,1704648652910,-585.31,0.00036164,2]
[310711746,1704648652984,-500.0,0.00036164,2]
[310711747,1704648652994,-500.0,0.00036164,2]
[310711748,1704648653003,-500.0,0.00036164,2]
[310711749,1704648653013,-500.0,0.00036164,2]
[310711750,1704648653023,-975.69,0.00036164,2]
[310711751,1704648653033,-500.0,0.00036164,2]
[310711752,1704648653043,-500.0,0.00036164,2]
[310711753,1704648653052,-500.0,0.00036164,2]
[310711754,1704648653063,-500.0,0.00036164,2]
[310711755,1704648653073,-500.0,0.00036164,2]
[310711756,1704648653082,-500.0,0.00036164,2]
[310711757,1704648653092,-500.0,0.00036164,2]
[310711758,1704648653102,-500.0,0.00036164,2]
[310711759,1704648653115,-500.0,0.00036164,2]
[310711760,1704648653124,-500.0,0.00036164,2]
[310711761,1704648653136,-857.22,0.00036164,2]
[310711762,1704648653146,-1000.0,0.00036164,7]
[310711763,1704648653157,-500.0,0.00036164,2]
[310711764,1704648653166,-500.0,0.00036164,2]
[310711765,1704648653176,-500.0,0.00036164,2]
[310711766,1704648653185,-500.0,0.00036164,2]
[310711767,1704648653196,-504.61963672,0.00036164,2]
[310711768,1704648653205,-890.39,0.00036164,2]
[310711769,1704648653215,-521.3,0.00036164,2]
[310711770,1704648653225,-500.0,0.00036164,2]
[310711771,1704648653235,-986.23,0.00036164,2]
[310711772,1704648653245,-500.0,0.00036164,2]
[310711773,1704648653254,-500.0,0.00036164,2]
[310711774,1704648653264,-500.0,0.00036164,2]
[310711775,1704648653274,-1993.04,0.00036164,2]
[310711776,1704648653284,-2581.24,0.00036164,2]
[310711777,1704648653293,-500.0,0.00036164,2]
[310711778,1704648653303,-2806.36,0.00036164,2]
[310711779,1704648653313,-500.0,0.00036164,2]
[310711780,1704648653322,-500.0,0.00036164,2]
[310711781,1704648653331,-500.0,0.00036164,2]
[310711782,1704648653340,-500.0,0.00036164,2]
[310711783,1704648653349,-500.0,0.00036164,2]
[310711784,1704648653358,-504.46,0.00036164,2]
[310711785,1704648653367,-500.0,0.00036164,2]
[310711786,1704648653376,-500.0,0.00036164,2]
[310711787,1704648653385,-2890.28,0.00036164,2]
[310711788,1704648653394,-504.27872507,0.00036164,2]
[310711789,1704648653403,-500.0,0.00036164,2]
[310711790,1704648653413,-214.50801746,0.00036164,2]
[310712138,1704649842982,-154.86062544,0.00025101,4]
[310712140,1704649842992,-606.31239599,0.00025102,2]
[310712142,1704649843001,-449.17993516,0.00025136,2]
[310712143,1704649843011,-19649.20370013,0.00025571,2]
[310712144,1704649843020,-1184.13274328,0.00025572,2]
[310712740,1704650078953,-154.84515385,0.000176,2]
[310712856,1704650997985,-174.76839857,0.00020956,2]
[310712857,1704650998006,-154.86062544,0.00020956,2]
[310712858,1704650998027,-154.86062544,0.00020957,4]
[310712859,1704650998048,-2033.44799394,0.00020957,2]
[310712860,1704650998071,-3475.78930461,0.00020958,2]
[310712861,1704650998092,-469.37613453,0.00020964,2]
[310712862,1704650998113,-17806.58570141,0.00020966,2]
[310712950,1704651032233,-9.99361426,0.00018868,3]
[310713005,1704651038404,-144.86701118,0.00018868,3]
[310713006,1704651038413,-174.76839857,0.00020965,2]
[310713007,1704651038422,-413.07579233,0.00020965,2]
[310713008,1704651038431,-54705.70234354,0.00020966,2]
[310713009,1704651038441,-174.813953,0.00021467,2]
[310713010,1704651038450,-325.28943933,0.00023471,2]
[310713011,1704651038459,-166.6666684,0.00025112,2]
[310713012,1704651038468,-154.86062544,0.00025563,2]
[310713013,1704651038478,-1126.49701628,0.00025569,2]
[310713014,1704651038487,-2926.25045484,0.00025572,2]
[310713208,1704651043657,-79.14315962,0.00025572,2]
[310713209,1704651043666,-200.0,0.00025572,2]
[310713211,1704651043676,-300.0,0.00025572,2]
[310713212,1704651043686,-155.95081948,0.00025572,2]
[310713213,1704651043695,-725.4560209,0.00025572,2]
[310713292,1704651302413,-212.5224337,0.000189,2]
[310713293,1704651302559,-4.33719252,0.000189,2]
[310713310,1704651369580,200.0,0.00022042,7]
[310713311,1704651370348,280.0,0.00024246,7]
[310713312,1704651371117,391.0,0.0002667,15]
[310713313,1704651374738,-5000.0,0.000189,2]
[310713314,1704651374970,-210.03643091,0.000189,2]
[310713315,1704651392715,-1752.95193125,0.000189,2]
[310713316,1704651392893,-35.77452921,0.000189,2]
[310713325,1704651506533,-4947.09121725,0.00018767,2]
[310713326,1704651506571,-100.96104525,0.00018767,2]
[310713352,1704651648198,-5000.0,0.00018091,2]
[310713353,1704651648469,-5000.0,0.00018091,2]
[310713354,1704651648718,-5000.0,0.00018091,2]
[310713355,1704651649001,-5000.0,0.00018091,2]
[310713356,1704651649106,-4900.0,0.00018091,2]
[310713357,1704651669976,280.0,0.00022941,7]
[310713358,1704651670714,391.0,0.00025235,7]
[310713359,1704651703858,-388.73213091,0.00018091,2]
[310713360,1704651704037,-7.93330879,0.00018091,2]
[310713364,1704651820772,-245.0,0.00018091,2]
[310713365,1704651821054,-5.0,0.00018091,2]
[310713368,1704651858193,-616.28156001,0.00018091,2]
[310713369,1704651858382,-12.57717469,0.00018091,2]
[310713370,1704651862044,-1495.86110681,0.00018012,2]
[310713371,1704651862146,-30.52777769,0.00018012,2]
[310713372,1704651866992,-594.18614807,0.00018011,2]
[310713373,1704651867098,-12.12624792,0.00018011,2]
[310713376,1704651883983,-324.07895282,0.00018268,2]
[310713377,1704651884202,-6.61385618,0.00018268,2]
[310713378,1704651887083,-5000.0,0.00018091,2]
[310713379,1704651887226,-5000.0,0.00018091,2]
[310713380,1704651887365,-5000.0,0.00018091,2]
[310713381,1704651887487,-5000.0,0.00018091,2]
[310713383,1704651887595,-5000.0,0.00018091,2]
[310713384,1704651887696,-5000.0,0.00018091,2]
[310713385,1704651887803,-5000.0,0.00018091,2]
[310713386,1704651887929,-5000.0,0.00018091,2]
[310713387,1704651888027,-5000.0,0.00018091,2]
[310713388,1704651888133,-5000.0,0.00018091,2]
[310713389,1704651888391,-5000.0,0.00018091,2]
[310713390,1704651888465,-5000.0,0.00018091,2]
[310713391,1704651888669,-5000.0,0.00018091,2]
[310713392,1704651888801,-2638.0957146,0.00018091,2]
[310713393,1704651896242,-4900.0,0.00018348,2]
[310713394,1704651896511,-100.0,0.00018348,2]
[310713399,1704651966931,-174.76839857,0.00018898,2]
[310713400,1704651966961,-143.50463203,0.00018899,3]
[310713401,1704651967221,-11.35599341,0.00018899,3]
[310713402,1704651967250,-150.0,0.000189,2]
[310713403,1704651969175,200.0,0.00021998,7]
[310713405,1704651969934,280.0,0.00024198,7]
[310713406,1704651970702,391.0,0.00026617,15]
[310713469,1704652232352,-154.86062544,0.00017995,3]
[310713470,1704652232362,-212.42667056,0.00018943,2]
[310713472,1704652232373,-20636.80456699,0.00018943,2]
[310713474,1704652232383,-14349.3302169,0.00018944,2]
[310713475,1704652232392,-605.53567808,0.0001896,2]
[310713476,1704652232403,-174.476193,0.00019178,2]
[310713478,1704652232412,-201.12975004,0.00019998,2]
[310713479,1704652232422,-2992.53948309,0.0002,2]
[310713481,1704652232431,-1710.159289,0.0002,2]
[310713483,1704652232441,-1710.159289,0.0002,2]
[310713484,1704652232450,-1710.159289,0.0002,2]
[310713485,1704652232460,-1710.159289,0.0002,2]
[310713487,1704652232469,-1710.159289,0.0002,2]
[310713489,1704652232479,-268.84623799,0.00020094,2]
[310713491,1704652232488,-344.04094036,0.00020966,2]
[310713493,1704652232498,-975.04064545,0.00021699,2]
[310713495,1704652232507,-166.666666,0.00021918,2]
[310713497,1704652232516,-166.666666,0.00022431,2]
[310713499,1704652232526,-166.666666,0.00022944,2]
[310713501,1704652232535,-166.666666,0.00023456,2]
[310713503,1704652232545,-150.0,0.000239,2]
[310713505,1704652232554,-166.666666,0.00023969,2]
[310713507,1704652232564,-249.46017888,0.00024,2]
[310713508,1704652232573,-2328.97,0.00024102,3]
[310713509,1704652232582,-178.24808117,0.00024111,2]
[310713510,1704652232591,-5946.99696762,0.00024111,2]
[310713511,1704652232601,-24675.80698444,0.00024112,2]
[310713512,1704652232611,-5262.05814536,0.00024113,2]
[310713513,1704652232620,-166.666666,0.00024482,2]
[310713514,1704652232630,-495.31512757,0.00025453,5]
[310713515,1704652232639,-200.0,0.00025572,2]
[310713516,1704652232649,-155.16578643,0.00025572,2]
[310713517,1704652232658,-760.75588404,0.00026005,5]
[310713518,1704652232667,-186.74393142,0.00026564,2]
[310713519,1704652232676,-3005.39361446,0.00026617,2]
[310713520,1704652232685,-1820.7363443,0.00026617,2]
[310713521,1704652232695,-762.96555308,0.00026617,2]
[310713522,1704652232704,-154.86062544,0.00026617,4]
[310713523,1704652232713,-322.52163965,0.00026793,2]
[310713524,1704652232723,-154.87609912,0.00026793,2]
[310713525,1704652232733,-235.76417524,0.00026793,2]
[310713526,1704652232743,-293.96606539,0.00026793,2]
[310713527,1704652232755,-393.41528718,0.00026793,2]
[310713528,1704652232768,-500.0,0.00026793,2]
[310713529,1704652232778,-176.75049882,0.00026793,2]
[310713530,1704652232787,-169.1876247,0.00026793,2]
[310713531,1704652232796,-676.23478638,0.00026794,2]
[310713532,1704652232806,-9907.49920413,0.00026794,2]
[310713533,1704652232816,-510.1005883,0.000269,2]
[310713534,1704652232825,-330.692809,0.00027402,2]
[310713535,1704652232835,-344.31973606,0.00028,2]
[310713536,1704652232845,-1340.9739039,0.00028316,2]
[310713537,1704652232854,-1256.85,0.00028795,2]
[310713538,1704652232863,-540.23208154,0.00028795,2]
[310713572,1704652238616,-174.76839857,0.00017994,2]
[310713573,1704652238625,-222.8,0.00027721,2]
[310713574,1704652238635,-318.383766,0.00027798,2]
[310713575,1704652238645,-716.61791846,0.00028795,2]
[310713576,1704652238654,-1256.85,0.00028795,2]
[310713577,1704652238663,-1256.85,0.00028795,2]
[310713578,1704652238673,-1256.85,0.00028795,2]
[310713579,1704652238682,-1256.85,0.00028795,2]
[310713580,1704652238691,-1256.93,0.00028795,2]
[310713581,1704652238701,-436.54027459,0.00028795,4]
[310713582,1704652238711,-484.09,0.00028795,4]
[310713583,1704652238721,-269.27880668,0.00028795,4]
[310713584,1704652238730,-277.43009807,0.00028795,4]
[310713585,1704652238740,-153615.9905062,0.00028796,2]
[310713586,1704652238751,-1574.87865971,0.00028796,2]
[310713587,1704652238767,-2517.04689792,0.00028796,2]
[310714003,1704652243442,-500.0,0.00028795,4]
[310714005,1704652243451,-381.13157396,0.00028795,4]
[310714336,1704652246443,-1820.7363443,0.00026617,2]
[310714338,1704652246452,-1940.81,0.00028786,3]
[310714340,1704652246461,-119.56585638,0.00028795,4]
[310714342,1704652246470,-43117.92269924,0.00028796,2]
[310714344,1704652246481,-9977.20886642,0.00028796,2]
[310714346,1704652246492,-8660.0,0.00028796,2]
[310714358,1704652246585,-499.45804012,0.00028796,2]
[310714360,1704652246596,-1720.36508219,0.00028796,2]
[310714362,1704652246609,-3676.85497572,0.00028796,2]
[310714365,1704652246621,-11295.12696486,0.00028796,2]
[310714367,1704652246630,-300.0,0.000288,14]
[310714369,1704652246638,-150.0,0.000288,2]
[310714371,1704652246647,-309.69031278,0.00028894,2]
[310714373,1704652246656,-155.40181344,0.00028894,2]
[310714375,1704652246666,-1786.37248645,0.00028894,2]
[310714377,1704652246674,-524.73174263,0.00028895,2]
[310714379,1704652246683,-2705.16083223,0.00028896,2]
[310714381,1704652246693,-198.63264518,0.00028896,2]
[310714383,1704652246702,-155.63510002,0.00028896,2]
[310714385,1704652246711,-1193.60075025,0.00028896,2]
[310714387,1704652246720,-16600.72583515,0.00028896,2]
[310714389,1704652246728,-1263.99402759,0.00028896,2]
[310714391,1704652246737,-852.41517296,0.00028896,2]
[310714392,1704652246746,-613.26381082,0.00028896,2]
[310714394,1704652246755,-254.97781152,0.00028896,2]
[310714395,1704652246768,-7422.42944823,0.00028897,2]
[310714397,1704652246777,-200.0,0.00029279,15]
[310714399,1704652246786,-348.0,0.00029279,15]
[310714401,1704652246795,-420.53373544,0.0002931,2]